bitfinex-derivatives/quotes_BTCF0:USTF0_20241203
["timestamp","ask_amount","ask_price","bid_price","bid_amount"]
[1733262647691,0.41285365,96151.0,96150.0,0.03142504]
[1733262647891,0.59967286,96151.0,96150.0,0.03042504]
[1733262648099,0.41285365,96151.0,96150.0,0.08239504]
[1733262648596,0.41285365,96151.0,96150.0,0.03042504]
[1733262649796,0.51818942,96151.0,96150.0,0.03042504]
[1733262650393,0.41285365,96151.0,96150.0,0.08239504]
[1733262650602,0.51820054,96151.0,96150.0,0.08239504]
[1733262653200,0.51820054,96151.0,96150.0,0.08339504]
[1733262653594,0.51820054,96151.0,96150.0,0.08639504]
[1733262654098,0.51808994,96151.0,96150.0,0.08439504]
[1733262654599,0.51808994,96151.0,96150.0,0.08339504]
[1733262655502,0.51808994,96151.0,96150.0,0.08439504]
[1733262656407,0.7364711,96151.0,96150.0,0.08439504]
[1733262656596,0.51808994,96151.0,96150.0,0.08439504]
[1733262657790,0.41285365,96151.0,96150.0,0.08439504]
[1733262658993,0.41285365,96151.0,96150.0,0.08339504]
[1733262659692,0.51833404,96151.0,96150.0,0.03142504]
[1733262659893,0.51833404,96151.0,96150.0,0.00104]
[1733262661502,0.51833404,96151.0,96150.0,0.05301]
[1733262662003,0.51833404,96151.0,96150.0,0.05201]
[1733262662500,0.51833404,96151.0,96150.0,4e-05]
[1733262662697,0.41285365,96151.0,96150.0,4e-05]
[1733262663504,0.41285365,96151.0,96150.0,0.00104]
[1733262664295,0.55525365,96151.0,96150.0,0.00104]
[1733262664601,0.63994398,96151.0,96150.0,0.00104]
[1733262664804,0.88901195,96151.0,96150.0,0.00104]
[1733262665105,0.78234398,96151.0,96150.0,0.00104]
[1733262665303,1.03141195,96151.0,96150.0,0.00104]
[1733262665509,0.78234398,96151.0,96150.0,0.00104]
[1733262666199,0.63994398,96151.0,96150.0,0.00104]
[1733262666400,0.78238398,96151.0,96150.0,4e-05]
[1733262666602,0.66037461,96151.0,96150.0,4e-05]
[1733262666905,0.87834863,96151.0,96150.0,4e-05]
[1733262667401,0.66037461,96151.0,96150.0,4e-05]
[1733262668204,0.51793461,96151.0,96150.0,4e-05]
[1733262668406,0.6384192,96151.0,96150.0,4e-05]
[1733262669511,0.88750387,96151.0,96150.0,4e-05]
[1733262669702,0.6384192,96151.0,96150.0,4e-05]
[1733262670003,0.88750642,96151.0,96150.0,0.00104]
[1733262670204,0.51793461,96151.0,96150.0,0.00104]
[1733262670711,0.51797617,96151.0,96150.0,0.00104]
[1733262670905,0.51797617,96151.0,96150.0,4e-05]
[1733262671604,0.51797617,96151.0,96150.0,0.00104]
[1733262672102,0.63969223,96151.0,96150.0,0.00204]
[1733262672297,0.63970442,96151.0,96150.0,0.00204]
[1733262672497,0.51797617,96151.0,96150.0,0.00204]
[1733262675312,0.51785968,96151.0,96150.0,0.00204]
[1733262677512,0.51785968,96151.0,96150.0,0.05401]
[1733262678711,0.15705968,96151.0,96150.0,0.05401]
[1733262678912,0.05205365,96151.0,96150.0,0.05401]
[1733262680612,0.05205365,96151.0,96150.0,0.05501]
[1733262681007,8.465e-05,96151.0,96150.0,0.05501]
[1733262682910,0.3618,96159.0,96150.0,0.15901361]
[1733262682911,0.18692295,96156.0,96150.0,0.15901361]
[1733262683109,0.18792295,96159.0,96158.0,0.051966]
[1733262683313,0.001,96159.0,96158.0,0.194366]
[1733262683617,0.15667667,96159.0,96158.0,0.194406]
[1733262684122,0.001,96159.0,96158.0,0.194406]
[1733262684417,0.1566754,96159.0,96158.0,0.194406]
[1733262684606,0.001,96159.0,96158.0,0.194406]
[1733262685312,0.001,96159.0,96158.0,0.14244]
[1733262685313,0.052965,96159.0,96158.0,0.14244]
[1733262686113,0.053965,96159.0,96158.0,4e-05]
[1733262686312,0.15960919,96159.0,96158.0,4e-05]
[1733262687616,0.15937186,96159.0,96158.0,4e-05]
[1733262687811,0.30305017,96159.0,96158.0,4e-05]
[1733262688012,0.89157304,96159.0,96158.0,4e-05]
[1733262688215,0.78178029,96159.0,96158.0,4e-05]
[1733262688520,1.06198176,96159.0,96158.0,4e-05]
[1733262688730,1.06198176,96159.0,96146.0,0.0104]
[1733262688731,0.78178029,96159.0,96146.0,0.0104]
[1733262689018,0.3608,96148.0,96143.0,0.02093397]
[1733262689219,0.051974,96144.0,96143.0,0.02093397]
[1733262689417,0.15738086,96144.0,96143.0,0.02093397]
[1733262689822,0.15738086,96144.0,96143.0,0.05032083]
[1733262690017,0.15738086,96144.0,96143.0,0.02093397]
[1733262690522,0.15738086,96144.0,96143.0,0.02693397]
[1733262691224,0.15738086,96144.0,96143.0,0.02093397]
[1733262691418,0.15738086,96144.0,96143.0,0.02493397]
[1733262692216,0.15738086,96144.0,96143.0,0.02793397]
[1733262692919,0.15738086,96144.0,96143.0,0.02493397]
[1733262693121,0.15738086,96144.0,96143.0,0.02693397]
[1733262694821,0.051974,96144.0,96143.0,0.02693397]
[1733262695026,0.412774,96144.0,96143.0,0.02693397]
[1733262699427,0.412774,96144.0,96143.0,0.00613293]
[1733262699627,0.51807425,96144.0,96143.0,0.00413293]
[1733262699827,0.51807425,96144.0,96143.0,0.00613293]
[1733262702436,0.412774,96144.0,96143.0,0.00613293]
[1733262702829,0.51778941,96144.0,96143.0,0.00613293]
[1733262703029,0.66102941,96144.0,96143.0,0.00613293]
[1733262703233,0.556014,96144.0,96143.0,0.00613293]
[1733262704241,0.412774,96144.0,96143.0,0.00613293]
[1733262706240,0.51784288,96144.0,96143.0,0.00613293]
[1733262709840,0.412774,96144.0,96143.0,0.00613293]
[1733262710546,0.51791566,96144.0,96143.0,0.00613293]
[1733262711137,0.412774,96144.0,96143.0,0.00613293]
[1733262712444,0.51791358,96144.0,96143.0,0.00613293]
[1733262712644,0.66115358,96144.0,96143.0,0.00613293]
[1733262714136,0.8790556,96144.0,96143.0,0.00613293]
[1733262714343,0.78327819,96144.0,96143.0,0.00613293]
[1733262715943,0.051978,96135.0,96134.0,0.0026]
[1733262716143,0.051978,96135.0,96130.0,0.00156014]
[1733262716144,0.05198,96131.0,96130.0,0.00156014]
[1733262716445,0.55602,96131.0,96130.0,0.00156014]
[1733262716644,0.66115958,96131.0,96130.0,0.00156014]
[1733262717850,0.66115958,96131.0,96130.0,0.00656014]
[1733262717851,0.87928049,96131.0,96130.0,0.00656014]
[1733262718051,0.78388784,96131.0,96130.0,1.4e-07]
[1733262718445,1.03311712,96131.0,96130.0,1.4e-07]
[1733262718644,0.81424649,96131.0,96130.0,1.4e-07]
[1733262718846,0.81424649,96131.0,96130.0,0.00300014]
[1733262719040,0.051982,96128.0,96127.0,0.00013466]
[1733262719241,0.15712158,96128.0,96127.0,0.00013466]
[1733262719449,0.17460398,96128.0,96127.0,0.00013466]
[1733262719658,0.27974356,96128.0,96127.0,0.00013466]
[1733262719847,0.27974554,96128.0,96127.0,0.00013466]
[1733262720049,0.30111126,96128.0,96127.0,6.6e-07]
[1733262720250,0.27974554,96128.0,96127.0,6.6e-07]
[1733262720549,0.28047502,96128.0,96127.0,0.00600066]
[1733262720941,0.28047502,96128.0,96127.0,0.00900066]
[1733262721353,0.37554546,96128.0,96127.0,0.00900066]
[1733262721750,0.15771456,96128.0,96127.0,0.00900066]
[1733262723452,0.15771456,96128.0,96120.0,0.03063169]
[1733262723754,0.15771456,96128.0,96112.0,0.0104]
[1733262723755,0.05199,96113.0,96112.0,0.0104]
[1733262724053,0.051995,96104.0,96100.0,0.0104]
[1733262724253,0.051995,96104.0,96085.0,0.1424]
[1733262724254,0.555195,96104.0,96103.0,0.03197047]
[1733262724450,0.555195,96104.0,96103.0,0.00156081]
[1733262724752,0.555195,96104.0,96103.0,0.00168725]
[1733262724753,0.6608706,96104.0,96103.0,0.00168725]
[1733262724953,0.6608702,96104.0,96103.0,0.00168725]
[1733262725145,0.6618702,96104.0,96103.0,0.01068725]
[1733262725452,0.66206231,96104.0,96103.0,0.00912644]
[1733262725753,0.66306649,96104.0,96103.0,0.01812644]
[1733262726552,0.55729919,96104.0,96103.0,0.01812644]
[1733262726941,0.66308449,96104.0,96103.0,0.01812644]
[1733262727146,0.60787736,96104.0,96103.0,0.01812644]
[1733262727347,0.60587736,96104.0,96103.0,0.00312644]
[1733262727542,0.60587736,96104.0,96103.0,0.00412644]
[1733262731357,0.79208438,96104.0,96103.0,0.00412644]
[1733262731655,0.60587736,96104.0,96103.0,0.00412644]
[1733262732059,0.71045246,96104.0,96103.0,0.00412644]
[1733262732260,0.56805246,96104.0,96103.0,0.00412644]
[1733262732456,0.55533919,96104.0,96103.0,0.00412644]
[1733262733358,0.53700032,96104.0,96103.0,0.05612144]
[1733262733561,0.41289919,96104.0,96103.0,0.05612144]
[1733262734466,0.41289919,96104.0,96103.0,0.00412644]
[1733262735061,0.71049246,96104.0,96103.0,0.00412644]
[1733262735457,0.55533919,96104.0,96103.0,0.00412644]
[1733262739959,0.60591586,96104.0,96103.0,0.00412644]
[1733262740260,0.60591572,96104.0,96103.0,0.00412644]
[1733262740668,0.56818573,96104.0,96103.0,0.05612144]
[1733262740966,0.05209919,96104.0,96103.0,0.05612144]
[1733262741263,0.00010419,96104.0,96103.0,0.16017592]
[1733262741458,0.09319019,96107.0,96106.0,0.051994]
[1733262741664,0.0026,96111.0,96103.0,0.10818092]
[1733262741967,0.0026,96111.0,96110.0,0.051991]
[1733262742164,0.05199,96115.0,96114.0,0.051989]
[1733262742362,0.17620285,96115.0,96114.0,0.051989]
[1733262742761,0.05199,96115.0,96114.0,0.051989]
[1733262742960,0.051993,96111.0,96110.0,0.051991]
[1733262743259,0.05199,96115.0,96106.0,0.053033]
[1733262743260,0.051993,96107.0,96106.0,0.053033]
[1733262743968,0.17633832,96107.0,96106.0,0.053033]
[1733262744267,0.051993,96107.0,96106.0,0.052033]
[1733262745372,0.051993,96107.0,96106.0,0.053033]
[1733262745759,0.051993,96107.0,96106.0,0.056033]
[1733262745962,0.051993,96107.0,96106.0,0.057033]
[1733262746871,0.051993,96107.0,96106.0,0.056033]
[1733262747061,0.051993,96107.0,96106.0,0.058033]
[1733262748068,0.051993,96107.0,96106.0,0.055033]
[1733262748667,0.051993,96107.0,96106.0,0.056033]
[1733262748865,0.051993,96107.0,96106.0,0.057033]
[1733262749272,0.15528654,96112.0,96111.0,0.051991]
[1733262749465,0.20727654,96112.0,96111.0,0.051991]
[1733262749660,0.05199,96112.0,96111.0,0.051991]
[1733262749860,0.15528654,96113.0,96112.0,0.05199]
[1733262750168,0.15528654,96113.0,96112.0,0.05203]
[1733262751072,0.15528654,96116.0,96115.0,0.051989]
[1733262751266,0.15528654,96116.0,96112.0,0.05203]
[1733262751267,0.15528654,96118.0,96112.0,0.05203]
[1733262751468,0.00010021,96123.0,96119.0,0.051986]
[1733262751663,0.36090021,96123.0,96122.0,0.051985]
[1733262751864,0.00010021,96123.0,96122.0,0.052025]
[1733262752167,0.00010021,96123.0,96122.0,0.412825]
[1733262752473,0.00010021,96123.0,96122.0,0.51686649]
[1733262752671,0.00010021,96123.0,96122.0,0.51986649]
[1733262753277,0.12437364,96125.0,96124.0,0.051984]
[1733262753467,0.12437364,96129.0,96126.0,0.051983]
[1733262753670,0.12432599,96130.0,96129.0,0.051981]
[1733262754175,0.12432599,96131.0,96130.0,0.05198]
[1733262754479,0.12428051,96131.0,96130.0,0.05202]
[1733262754863,0.12428051,96132.0,96131.0,0.05198]
[1733262755063,0.15552554,96134.0,96130.0,0.05202]
[1733262755262,0.15552554,96134.0,96133.0,0.051979]
[1733262755570,0.15530455,96134.0,96133.0,4e-05]
[1733262755770,0.15530455,96134.0,96133.0,0.052019]
[1733262755973,0.412777,96137.0,96133.0,4e-05]
[1733262756272,0.412777,96137.0,96136.0,0.052017]
[1733262758472,0.56801412,96137.0,96136.0,0.08235604]
[1733262758675,0.51603746,96137.0,96136.0,0.08235604]
[1733262758876,0.412777,96137.0,96136.0,0.08335604]
[1733262759482,0.56800585,96137.0,96136.0,0.08335604]
[1733262759870,0.51602885,96137.0,96136.0,0.08335604]
[1733262760073,0.3608,96137.0,96136.0,0.08335604]
[1733262760574,0.51601962,96137.0,96136.0,0.08335604]
[1733262760977,0.412777,96137.0,96136.0,0.08335604]
[1733262763277,0.46333308,96137.0,96136.0,0.08335604]
[1733262763578,0.3608,96137.0,96136.0,0.08335604]
[1733262763777,0.155253,96138.0,96136.0,0.03037904]
[1733262763984,0.157853,96140.0,96139.0,0.051976]
[1733262764183,0.155253,96140.0,96139.0,0.051976]
[1733262764383,0.051975,96140.0,96139.0,0.052016]
[1733262764575,0.20721251,96140.0,96139.0,0.052016]
[1733262764769,0.051975,96140.0,96139.0,0.052016]
[1733262765180,0.10252955,96140.0,96139.0,0.052016]
[1733262765484,0.10352955,96140.0,96139.0,0.052016]
[1733262766783,0.10352955,96140.0,96139.0,4e-05]
[1733262767082,0.051982,96127.0,96126.0,0.062382]
[1733262767280,0.051982,96127.0,96126.0,0.08135346]
[1733262767875,0.051982,96127.0,96126.0,0.10215681]
[1733262768272,0.051982,96127.0,96126.0,0.10415681]
[1733262769279,0.051982,96127.0,96126.0,0.10515681]
[1733262770078,0.083582,96127.0,96126.0,0.10515681]
[1733262770478,0.26996297,96127.0,96126.0,0.10515681]
[1733262770782,0.083582,96127.0,96126.0,0.10515681]
[1733262772278,0.2702902,96127.0,96126.0,0.10515681]
[1733262772483,0.083582,96127.0,96126.0,0.10515681]
[1733262772989,0.27030303,96127.0,96126.0,0.10515681]
[1733262773390,0.27031928,96127.0,96126.0,0.10515681]
[1733262773584,0.083582,96127.0,96126.0,0.10515681]
[1733262774278,0.083582,96127.0,96126.0,0.10315681]
[1733262774481,0.084582,96127.0,96126.0,0.10315681]
[1733262774687,0.084582,96127.0,96126.0,0.10215681]
[1733262774885,0.085582,96127.0,96126.0,0.10215681]
[1733262775383,0.19147282,96127.0,96126.0,0.02937146]
[1733262775586,0.13949082,96127.0,96117.0,0.051988]
[1733262775888,0.051989,96115.0,96114.0,0.062389]
[1733262776094,0.051989,96115.0,96114.0,0.051989]
[1733262777093,0.65014183,96115.0,96114.0,0.08214245]
[1733262777280,0.46335475,96115.0,96114.0,0.08214245]
[1733262777975,0.46335475,96115.0,96114.0,0.08514245]
[1733262778381,0.46335475,96115.0,96114.0,0.08614245]
[1733262778679,0.41136552,96115.0,96114.0,0.08614245]
[1733262778988,0.41136552,96115.0,96114.0,0.19018502]
[1733262779180,0.0026,96122.0,96114.0,0.19018502]
[1733262779181,0.15567542,96116.0,96114.0,0.19018502]
[1733262779383,0.0505608,96121.0,96117.0,0.051988]
[1733262779578,0.05056081,96120.0,96119.0,0.051987]
[1733262779784,0.18678708,96123.0,96116.0,0.051988]
[1733262779983,0.15569791,96117.0,96116.0,0.051988]
[1733262780382,0.3634,96127.0,96122.0,0.051985]
[1733262780383,0.18678708,96123.0,96122.0,0.051985]
[1733262780595,0.05056031,96123.0,96117.0,0.001]
[1733262780776,0.05056031,96123.0,96117.0,0.052988]
[1733262780777,0.15571325,96118.0,96117.0,0.052988]
[1733262781180,0.18678708,96124.0,96116.0,0.053988]
[1733262781384,0.15572041,96117.0,96116.0,0.053988]
[1733262781585,0.15572041,96119.0,96117.0,0.1040404]
[1733262781907,0.0026,96127.0,96117.0,0.1040404]
[1733262781908,0.0026,96127.0,96126.0,0.051983]
[1733262782088,0.00011017,96146.0,96126.0,0.051983]
[1733262782089,0.18678708,96131.0,96126.0,0.560783]
[1733262782388,0.0026,96134.0,96133.0,0.051979]
[1733262782389,0.18938708,96134.0,96133.0,0.051979]
[1733262782691,0.57854851,96147.0,96134.0,0.051979]
[1733262782692,0.18678708,96135.0,96134.0,0.051979]
[1733262782887,0.051975,96141.0,96135.0,0.051978]
[1733262783193,0.18683995,96136.0,96135.0,0.051978]
[1733262784090,0.18683995,96136.0,96135.0,0.052978]
[1733262784287,0.18683995,96137.0,96136.0,0.051978]
[1733262784793,0.051975,96141.0,96140.0,0.051975]
[1733262785788,0.051975,96141.0,96140.0,0.052015]
[1733262785994,0.051975,96141.0,96140.0,0.08157072]
[1733262787490,0.24079322,96141.0,96140.0,0.08157072]
[1733262787696,0.053975,96141.0,96140.0,0.08157072]
[1733262787883,0.2397989,96141.0,96140.0,0.08157072]
[1733262788089,0.2417989,96141.0,96140.0,0.02959572]
[1733262788391,0.24179772,96141.0,96140.0,0.02959572]
[1733262788693,0.054975,96141.0,96140.0,0.02959572]
[1733262788894,0.24179772,96141.0,96140.0,0.02959572]
[1733262789094,0.054975,96141.0,96140.0,0.02959572]
[1733262789489,0.054975,96141.0,96140.0,4e-05]
[1733262789799,0.15882213,96141.0,96140.0,4e-05]
[1733262790192,0.15682213,96141.0,96140.0,4e-05]
[1733262790399,0.15782213,96141.0,96140.0,4e-05]
[1733262790692,0.17531737,96141.0,96140.0,4e-05]
[1733262790991,0.2791645,96141.0,96140.0,4e-05]
[1733262791391,0.2791645,96141.0,96128.0,0.0104]
[1733262791585,0.051983,96127.0,96126.0,0.052023]
[1733262791785,0.051983,96127.0,96126.0,0.08243146]
[1733262791994,0.23882745,96127.0,96126.0,0.08243146]
[1733262792195,0.051983,96127.0,96126.0,0.08243146]
[1733262792404,0.051983,96127.0,96126.0,0.10323211]
[1733262793896,0.051983,96127.0,96126.0,0.10723211]
[1733262794290,0.15586625,96127.0,96126.0,0.10723211]
[1733262794600,0.051983,96127.0,96126.0,0.10723211]
[1733262794801,0.15586581,96127.0,96126.0,0.10923211]
[1733262794995,0.051983,96127.0,96126.0,0.10623211]
[1733262795595,0.051983,96127.0,96126.0,0.10423211]
[1733262796300,0.15589717,96127.0,96126.0,0.10423211]
[1733262796495,0.15589717,96127.0,96115.0,0.052029]
[1733262796496,0.051986,96121.0,96115.0,4e-05]
[1733262796701,0.15590206,96121.0,96115.0,4e-05]
[1733262797002,0.26997463,96121.0,96117.0,0.02975559]
[1733262797191,0.37389069,96121.0,96117.0,0.02975559]
[1733262797502,0.15590206,96121.0,96120.0,0.00356041]
[1733262797704,0.15590206,96121.0,96120.0,0.00756041]
[1733262799691,0.15590206,96121.0,96120.0,0.006]
[1733262799892,0.148,96127.0,96124.0,0.051983]
[1733262800195,0.051984,96125.0,96124.0,0.051983]
[1733262800399,0.15577406,96125.0,96124.0,0.051983]
[1733262801095,0.051984,96125.0,96124.0,0.052983]
[1733262801400,0.051984,96125.0,96124.0,0.054983]
[1733262802692,0.051984,96125.0,96124.0,0.053983]
[1733262802904,0.051984,96125.0,96124.0,0.054983]
[1733262806194,0.3608,96128.0,96127.0,0.051983]
[1733262806593,0.54757508,96128.0,96127.0,0.051983]
[1733262806793,0.3608,96128.0,96127.0,0.051983]
[1733262807403,0.3608,96128.0,96127.0,0.052983]
[1733262808595,0.18677508,96133.0,96132.0,0.05198]
[1733262808803,0.18677508,96133.0,96127.0,0.052983]
[1733262808804,0.051979,96134.0,96133.0,0.051979]
[1733262809099,0.051979,96134.0,96133.0,0.052019]
[1733262809794,0.0026,96141.0,96136.0,0.051978]
[1733262809795,0.18677508,96137.0,96136.0,0.051978]
[1733262810005,0.18677825,96138.0,96137.0,0.051977]
[1733262810197,0.18677825,96138.0,96136.0,0.051978]
[1733262810198,0.18677825,96140.0,96136.0,0.052018]
[1733262810397,0.18677825,96140.0,96139.0,0.051976]
[1733262810698,0.18677825,96140.0,96139.0,0.052016]
[1733262810898,0.18677825,96142.0,96141.0,0.051975]
[1733262811199,0.18677825,96142.0,96141.0,0.052015]
[1733262812098,0.3608,96143.0,96141.0,4e-05]
[1733262812099,0.54757825,96143.0,96141.0,4e-05]
[1733262812405,0.59955225,96143.0,96142.0,0.052014]
[1733262812705,0.412774,96143.0,96142.0,0.052014]
[1733262813200,0.54753262,96143.0,96142.0,0.052014]
[1733262813592,0.55653262,96143.0,96142.0,0.053014]
[1733262814003,0.3698,96143.0,96142.0,0.053014]
[1733262814501,0.55652803,96143.0,96142.0,0.053014]
[1733262814709,0.3698,96143.0,96142.0,0.053014]
[1733262816009,0.009,96143.0,96142.0,0.15702627]
[1733262816705,0.16455875,96143.0,96142.0,0.15702627]
[1733262816896,0.16455694,96143.0,96142.0,0.17600497]
[1733262817096,0.009,96143.0,96142.0,0.18770711]
[1733262817602,0.16455694,96143.0,96142.0,0.18770711]
[1733262817799,0.16455694,96143.0,96142.0,0.33758711]
[1733262818000,0.009,96143.0,96142.0,0.33758711]
[1733262821316,0.16447452,96143.0,96142.0,0.33758711]
[1733262821712,0.009,96143.0,96142.0,0.33758711]
[1733262823611,0.009,96143.0,96142.0,0.35838756]
[1733262825108,0.13330257,96143.0,96142.0,0.35838756]
[1733262825818,0.009,96143.0,96142.0,0.35838756]
[1733262826608,0.13330257,96143.0,96142.0,0.35838756]
[1733262826809,0.009,96143.0,96142.0,0.35838756]
[1733262827613,0.13330257,96143.0,96142.0,0.35838756]
[1733262827817,0.009,96143.0,96142.0,0.35838756]
[1733262830521,0.16447452,96143.0,96142.0,0.35838756]
[1733262830724,0.009,96143.0,96142.0,0.35838756]
[1733262831220,0.16450971,96143.0,96142.0,0.35838756]
[1733262831424,0.16451216,96143.0,96142.0,0.35838756]
[1733262831720,0.009,96143.0,96142.0,0.35838756]
[1733262832109,0.16451216,96143.0,96142.0,0.35838756]
[1733262832307,0.009,96143.0,96142.0,0.35838756]
[1733262833212,0.16451216,96143.0,96142.0,0.35838756]
[1733262834328,0.009,96143.0,96142.0,0.35838756]
[1733262834524,0.16457884,96143.0,96142.0,0.35838756]
[1733262834714,0.009,96143.0,96142.0,0.35838756]
[1733262834919,0.009,96143.0,96142.0,0.35849]
[1733262835223,0.009,96143.0,96142.0,0.39049]
[1733262835619,0.009,96143.0,96142.0,0.40952358]
[1733262835825,0.13347789,96143.0,96142.0,0.40952358]
[1733262836013,0.009,96143.0,96142.0,0.24061]
[1733262836424,0.13347789,96143.0,96142.0,0.39049]
[1733262837123,0.009,96143.0,96142.0,0.39049]
[1733262840313,0.13350683,96143.0,96142.0,0.39049]
[1733262840513,0.009,96143.0,96142.0,0.57732342]
[1733262840726,0.009,96143.0,96142.0,0.59639273]
[1733262840918,0.009,96143.0,96142.0,0.40955931]
[1733262841720,0.009,96143.0,96142.0,0.59638874]
[1733262842121,0.009,96143.0,96142.0,0.40955931]
[1733262843624,0.009,96143.0,96142.0,0.59639864]
[1733262844220,0.13350683,96143.0,96142.0,0.59639864]
[1733262845119,0.13350683,96143.0,96142.0,0.40955931]
[1733262845623,0.009,96143.0,96142.0,0.40955931]
[1733262846027,0.009,96143.0,96142.0,0.59646499]
[1733262846326,0.009,96143.0,96142.0,0.40955931]
[1733262846327,1e-08,96143.0,96142.0,0.40955931]
[1733262846825,0.15557884,96151.0,96143.0,0.051969]
[1733262847131,0.15557884,96151.0,96142.0,0.35758531]
[1733262847132,0.15557884,96152.0,96151.0,0.051965]
[1733262847342,0.15572747,96153.0,96152.0,0.051964]
[1733262847633,0.15572747,96154.0,96153.0,0.051963]
[1733262848021,0.15572747,96154.0,96153.0,0.15600445]
[1733262848927,0.15572747,96155.0,96154.0,0.051963]
[1733262849323,0.001,96159.0,96154.0,0.052003]
[1733262849529,0.001,96159.0,96158.0,0.412761]
[1733262850221,0.001,96159.0,96158.0,0.51679596]
[1733262850523,0.004,96159.0,96158.0,0.51679596]
[1733262850728,0.004,96159.0,96158.0,0.052001]
[1733262851126,0.19271165,96159.0,96158.0,0.053001]
[1733262851328,0.19285961,96159.0,96158.0,0.053001]
[1733262851931,0.006,96159.0,96158.0,0.053001]
[1733262852526,0.55566949,96159.0,96158.0,0.053001]
[1733262852829,0.3688,96159.0,96158.0,0.053001]
[1733262853129,0.3688,96159.0,96158.0,0.08345922]
[1733262853721,0.008,96159.0,96158.0,0.08345922]
[1733262853918,0.19488129,96159.0,96158.0,0.08345922]
[1733262854323,0.008,96159.0,96158.0,0.08345922]
[1733262856426,0.05996,96159.0,96158.0,0.08345922]
[1733262858128,0.24686805,96159.0,96158.0,0.08345922]
[1733262859227,0.05996,96159.0,96158.0,0.08345922]
[1733262860033,0.42076,96159.0,96158.0,0.08345922]
[1733262861324,0.05996,96159.0,96158.0,0.08345922]
[1733262861529,0.42076,96159.0,96158.0,0.08345922]
[1733262862327,0.05996,96159.0,96158.0,0.08345922]
[1733262862525,0.42076,96159.0,96158.0,0.08345922]
[1733262863937,0.5208472,96159.0,96158.0,0.08345922]
[1733262865634,0.1600472,96159.0,96158.0,0.08345922]
[1733262865840,0.5208472,96159.0,96158.0,0.08345922]
[1733262867541,0.63694287,96159.0,96158.0,0.08345922]
[1733262869037,0.27614287,96159.0,96158.0,0.08345922]
[1733262869340,0.63694287,96159.0,96158.0,0.08345922]
[1733262869638,0.27614287,96159.0,96158.0,0.08345922]
[1733262869838,0.63694287,96159.0,96158.0,0.08345922]
[1733262870134,0.63723895,96159.0,96158.0,0.08345922]
[1733262870335,0.73903691,96159.0,96158.0,0.08345922]
[1733262870841,0.73903893,96159.0,96158.0,0.08345922]
[1733262871235,0.1600472,96159.0,96158.0,0.08345922]
[1733262871834,0.37823893,96159.0,96158.0,0.08345922]
[1733262872034,0.1600472,96159.0,96158.0,0.08345922]
[1733262872235,0.73903893,96159.0,96158.0,0.08345922]
[1733262872435,0.6702472,96159.0,96152.0,0.02079571]
[1733262872734,0.051963,96153.0,96152.0,0.02079571]
[1733262873238,0.1520502,96153.0,96152.0,0.02079571]
[1733262873441,0.30133943,96153.0,96152.0,0.02079571]
[1733262873645,0.083163,96153.0,96152.0,0.02079571]
[1733262874439,0.090163,96153.0,96152.0,0.02179571]
[1733262875937,0.094163,96153.0,96152.0,0.02179571]
[1733262876739,0.094163,96153.0,96148.0,0.051965]
[1733262876740,0.051966,96149.0,96148.0,0.04376071]
[1733262877642,0.3608,96149.0,96146.0,0.03015836]
[1733262877842,0.3628,96149.0,96144.0,0.051968]
[1733262878047,0.051968,96145.0,96144.0,0.051968]
[1733262880450,0.051969,96143.0,96142.0,0.10278189]
[1733262881636,0.052969,96143.0,96142.0,0.10278189]
[1733262882049,0.054969,96143.0,96142.0,0.10278189]
[1733262886651,0.054969,96143.0,96142.0,0.05081289]
[1733262889054,0.054969,96143.0,96142.0,0.00010244]
[1733262892865,0.08450916,96143.0,96142.0,0.00010244]
[1733262900059,0.08450916,96143.0,96142.0,4.4e-07]
[1733262902255,0.054969,96143.0,96142.0,4.4e-07]
[1733262902456,0.199009,96143.0,96142.0,4.4e-07]
[1733262903764,0.054969,96143.0,96142.0,4.4e-07]
[1733262910971,0.415769,96143.0,96142.0,4.4e-07]
[1733262912274,0.63394543,96143.0,96142.0,4.4e-07]
[1733262912784,0.415769,96143.0,96142.0,4.4e-07]
[1733262914576,0.63394543,96143.0,96142.0,4.4e-07]
[1733262914774,0.77798543,96143.0,96142.0,4.4e-07]
[1733262915274,0.90958109,96143.0,96142.0,4.4e-07]
[1733262915475,0.051974,96134.0,96133.0,4.4e-07]
[1733262915677,0.556814,96134.0,96133.0,4.4e-07]
[1733262917877,0.051975,96132.0,96124.0,9.4e-07]
[1733262918073,0.412779,96125.0,96124.0,9.4e-07]
[1733262918380,0.051982,96118.0,96117.0,9.4e-07]
[1733262919886,0.051982,96118.0,96117.0,0.00400094]
[1733262920064,0.051982,96118.0,96117.0,9.4e-07]
[1733262920065,0.052982,96118.0,96117.0,9.4e-07]
[1733262924178,0.052982,96118.0,96115.0,1e-07]
[1733262924379,0.412783,96116.0,96115.0,1e-07]
[1733262924578,0.556863,96116.0,96115.0,1e-07]
[1733262925173,0.55696994,96116.0,96115.0,1e-07]
[1733262925775,0.64891349,96116.0,96115.0,1e-07]
[1733262925977,0.67939168,96116.0,96115.0,1e-07]
[1733262926280,0.051989,96105.0,96104.0,0.033]
[1733262926475,0.051989,96105.0,96093.0,0.0306]
[1733262926476,0.051991,96102.0,96101.0,0.00012248]
[1733262928672,0.052991,96102.0,96101.0,0.00012248]
[1733262928877,0.052991,96102.0,96101.0,0.00412248]
[1733262928878,0.053991,96102.0,96101.0,0.00412248]
[1733262934786,0.196911,96102.0,96101.0,0.00412248]
[1733262938090,0.196911,96102.0,96101.0,4.8e-07]
[1733262938286,0.41540685,96102.0,96087.0,0.02934199]
[1733262938592,0.051999,96088.0,96080.0,0.00156119]
[1733262938798,0.052001,96084.0,96083.0,0.06104938]
[1733262938987,0.052001,96084.0,96083.0,0.03037863]
[1733262939481,0.052001,96084.0,96083.0,7.863e-05]
[1733262940294,0.053001,96084.0,96083.0,7.863e-05]
[1733262941385,0.053001,96084.0,96083.0,0.00107863]
[1733262941386,0.054001,96084.0,96083.0,0.00107863]
[1733262942383,0.054001,96084.0,96083.0,6.3e-07]
[1733262942900,0.08462902,96084.0,96083.0,6.3e-07]
[1733262943284,0.052009,96069.0,96068.0,6.3e-07]
[1733262943489,0.052009,96069.0,96068.0,4.1e-07]
[1733262943490,0.555769,96069.0,96068.0,4.1e-07]
[1733262945196,0.555769,96069.0,96051.0,6.5e-07]
[1733262945197,0.052019,96052.0,96051.0,6.5e-07]
[1733262945502,0.555779,96052.0,96051.0,6.5e-07]